Workbook

Sheet BASE
A1: ALUMNOS | I1: PROFESORES
A2: MATRICULA | B2: NOMBRE | C2: SEMESTRE | D2: GRUPO | E2: E-MAIL | F2: NUMERO TELEFONICO | I2: N° DE PLAZA | J2: PROFESOR | K2: MATERIA | L2: SUELDO | M2: CREDITOS | N2: SUELDO TOTAL MENSUAL | Q2: NOMBRE | R2: LUGAR DE NACIMIENTO | T2: ESTADO | U2: FECHA DE NACIMIENTO | V2: EDAD | W2: SEXO | X2: CARRERA ELEGIDA | Z2: MATEMATICAS | AB2: ESPAÑOL | AD2: PROMEDIO
A3: B130012 | B3: JUAN JOSE PEDROSA MENDEZ | C3: 2 | D3: K | E3: juan@hotmail.com | F3: 9621789542 | I3: N°2525252225 | J3: CARLOS ALESSIO PEREZ | K3: INGLES | L3: 5000 | M3: 500 | N3: =SUM(L3+M3) -> 5500 | Q3: AGUILAR PEREZ MARIO | R3: CACAHUATAN | T3: CHIAPAS | U3: 2014-02-09 | V3: 18 | W3: H | X3: SISTEMAS | Y3: EAMEN DE SELECCIÓN | Z3: EX1 | AA3: CALCULO | AB3: LECTURA | AC3: REDACCION
A4: B130023 | B4: ALEXIS MOLINA MENDEZ | C4: 2 | D4: K | E4: alex@hotmail.com | F4: 9621365478 | I4: N°2525654222 | J4: EDUARDO DE JESUS REYES | K4: DERECHO | L4: 5000 | M4: 200 | N4: =SUM(L4+M4) -> 5200 | Q4: ALEXIS SALGADO MOLINA | R4: CIUDAD HIDALGO | T4: CHIAPAS | U4: 2014-02-10 | V4: 19 | W4: H | X4: CONTADURIA | Z4: 6 | AA4: 8 | AB4: 10 | AC4: 8 | AD4: =AVERAGE(Z4,AA4,AB4,AC4) -> 8 | AE4: =IF(AD4<6,"REPROBADO","APROBADO") -> APROBADO
A5: B130031 | B5: ANGEL GUILLERMO PEREZ PEREZ | C5: 2 | D5: K | E5: angel@hotmail.com | F5: 9621659836 | I5: N°6524215856 | J5: OMAR JIMENEZ BAMACA | K5: ADMINISTRACION | L5: 6000 | M5: 300 | N5: 6300 | Q5: ALFARO MENDEZ PEDRO | R5: COMITAN | T5: CHIAPAS | U5: 2014-02-11 | V5: 21 | W5: H | X5: CONTADURIA | Z5: 5 | AA5: 5 | AB5: 5 | AC5: 5 | AD5: =AVERAGE(Z5,AA5,AB5,AC5) -> 5 | AE5: =IF(AD5<6,"REPROBADO","APROBADO") -> REPROBADO
A6: B130032 | B6: AURORA LUZ ANGEL | C6: 2 | D6: K | E6: auro@hotmail.com | F6: 9621458966 | I6: N°9789874651 | J6: ADRIAN MORERO CRUZ | K6: CONTADURIA | L6: 9999 | M6: 500 | N6: 10499 | Q6: ANGEL GUILLERMO GUZMON BARRIOS | R6: FRONTERA COMALAPA | T6: CHIAPAS | U6: 2014-02-12 | V6: 18 | W6: H | X6: SISTEMAS | Z6: 8 | AA6: 9 | AB6: 5 | AC6: 10 | AD6: 8 | AE6: APROBADO
A7: B130025 | B7: BRENDA ISAELA ALESSIO | C7: 2 | D7: K | E7: brenda@hotmail.com | F7: 9624569368 | I7: N°9876545613 | J7: MABEL ADRIANA DUQUE PAIZ | K7: COMPUTACION | L7: 4200 | M7: 500 | N7: 4700 | Q7: CARLOS ISRAEL ALESSIO PEREZ | R7: FRONTERA, COMALAPA | T7: CHIAPAS | U7: 2014-02-13 | V7: 19 | W7: H | X7: SISTEMAS | Z7: 8 | AA7: 9 | AB7: 9 | AC7: 8 | AD7: 8.5 | AE7: APROBADO
A8: B130054 | B8: CARLOS ISRAEL VASQUEZ TORIBIO | C8: 2 | D8: K | E8: carlos@hotmail.com | F8: 9624568791 | I8: N°9876312658 | J8: LAURA CISNEROS FUENTES | K8: ECONOMIA | L8: 3000 | M8: 250 | N8: 3250 | Q8: CASTELLANOS BARRIOS VERONICA | R8: FRONTERA, HIDALGO | T8: CHIAPAS | U8: 2014-02-14 | V8: 20 | W8: H | X8: SISTEMAS | Z8: 8 | AA8: 9 | AB8: 9 | AC8: 8 | AD8: 8.5 | AE8: APROBADO
A9: B130068 | B9: CIRO NAKAMURHA LOO | C9: 2 | D9: K | E9: ciro@hotmail.com | F9: 9624532698 | I9: N°8903214786 | J9: FRANCISCO PEREZ ORTEGA | K9: MATEMATICAS | L9: 2300 | M9: 150 | N9: 2450 | Q9: CRISTIAN GODINES | R9: LA TRANITARIA | T9: CHIAPAS | U9: 2014-02-15 | V9: 20 | W9: H | X9: CONTADURIA | Z9: 5 | AA9: 9 | AB9: 6 | AC9: 8 | AD9: 7 | AE9: APROBADO
A10: B130066 | B10: EDUARDO TOLEDO TOLEDO | C10: 2 | D10: K | E10: eduardo@hotmail.com | F10: 9624563259 | I10: N°9876105644 | J10: ORLANDO PRADO SOTO | K10: APRENDER A APRENDER | L10: 3600 | M10: 360 | N10: 3960 | Q10: CRUZ TOLEDO HENRRY | R10: LAS MARGARITAS | T10: CHIAPAS | U10: 2014-02-16 | V10: 18 | W10: M | X10: SISTEMAS | Z10: 5 | AA10: 5 | AB10: 5 | AC10: 5 | AD10: 5 | AE10: REPROBADO
A11: B130047 | B11: FERNANDO MENDEZ MENDEZ | C11: 2 | D11: K | E11: fernando@hotmail.com | F11: 9623568941 | Q11: FRANCISCO EDUARDO PEREZ PEREZ | R11: MAPASTEPEC | T11: CHIAPAS | U11: 2014-02-17 | V11: 19 | W11: H | X11: CONTADURIA | Z11: 9 | AA11: 8 | AB11: 8 | AC11: 9 | AD11: 8.5 | AE11: APROBADO
A12: B130024 | B12: JAZMIN PEDROSA PEDROSA | C12: 2 | D12: K | E12: jazmin@hotmail.com | F12: 9623547896 | Q12: GILBERTO RAMOS BARRON | R12: METAPA, DE DOMINGUEZ | T12: CHIAPAS | U12: 2014-02-18 | V12: 22 | W12: H | X12: CONTADURIA | Z12: 8 | AA12: 8 | AB12: 8 | AC12: 9 | AD12: 8.25 | AE12: APROBADO
A13: B130044 | B13: JESUS REYES TOLEDO | C13: 2 | D13: K | E13: jesus@hotmail.com | F13: 9620364586 | Q13: HERNANDEZ RAMOS BRENDA | R13: OCOZOCUAUTLA | T13: CHIAPAS | U13: 2014-02-19 | V13: 20 | W13: H | X13: CONTADURIA | Z13: 4 | AA13: 8 | AB13: 8 | AC13: 10 | AD13: 7.5 | AE13: APROBADO
A14: B130087 | B14: LIZBETH GUERRERO CRUZ | C14: 2 | D14: K | E14: lizbeth@hotmail.com | F14: 9620356666 | Q14: JOSE BENITO PEREZ ARMIENTO | R14: PIJIJIAPAN | T14: CHIAPAS | U14: 2014-02-20 | V14: 19 | W14: H | X14: SISTEMAS | Z14: 4 | AA14: 7 | AB14: 8 | AC14: 8 | AD14: 6.75 | AE14: APROBADO
A15: B130077 | B15: MARIA ELENA CRUZ CRUZ | C15: 2 | D15: K | E15: maria@hotmail.com | F15: 9621001004 | Q15: JOSEFINA DEL VAZQUEZ MOTA | R15: SUCHIAPA | T15: CHIAPAS | U15: 2014-02-21 | V15: 18 | W15: H | X15: CONTADURIA | Z15: 5 | AA15: 5 | AB15: 5 | AC15: 8 | AD15: 5.75 | AE15: REPROBADO
A16: B130054 | B16: OMAR CRUZ VASQUEZ | C16: 2 | D16: K | E16: omar@hotmail.com | F16: 9624446679 | Q16: KEVIN DE LA CRUZ | R16: TAPACHULA | T16: CHIAPAS | U16: 2014-02-22 | V16: 20 | W16: H | X16: SISTEMAS | Z16: 7 | AA16: 7 | AB16: 9 | AC16: 8 | AD16: 7.75 | AE16: APROBADO
A17: B130069 | B17: PEDRO FERNANDEZ MUTUO | C17: 2 | D17: K | E17: pedro@hotmail.com | F17: 9625478963 | Q17: MARIO PEREZ CANTIFLAS | R17: TONALA | T17: CHIAPAS | U17: 2014-02-23 | V17: 19 | W17: M | X17: SISTEMAS | Z17: 7 | AA17: 4 | AB17: 9 | AC17: 9 | AD17: 7.25 | AE17: APROBADO
Q18: MARTIN PEREZ LOPEZ | R18: TUXTLA CHICO | T18: CHIAPAS | U18: 2014-02-24 | V18: 19 | W18: H | X18: CONTADURIA | Z18: 7 | AA18: 4 | AB18: 9 | AC18: 9 | AD18: 7.25 | AE18: APROBADO
A19: MATRICULA | B19: NOMBRE | C19: SEMESTRE | D19: GRUPO | E19: E-MAIL | F19: TELEFONO | G19: LICENCIATURA | I19: MOBILIARIO Y EQUIPO | Q19: OMAR CRUZ VASQUEZ | R19: ZINACANTAN | T19: CHIAPAS | U19: 2014-02-25 | V19: 18 | W19: M | X19: CONTADURIA | Z19: 8 | AA19: 4 | AB19: 8 | AC19: 9 | AD19: 7.25 | AE19: APROBADO
A20: B130052 | B20: AGUILAR PEREZ MARIO | C20: 1 | D20: A | E20: perez_34@hotmail.com | F20: 9621789542 | G20: CONTADURIA | I20: MOBILIARIO O EQUIPO | J20: CANTIDAD | K20: AÑO DE EQUIPAMIENTO | L20: PROVEEDORES | M20: PRECIO UNITARIO
A21: B130053 | B21: ALFARO MENDEZ PEDRO | C21: 2 | D21: D | E21: pedro23@hotmail.com | F21: 9621365478 | G21: SISTEMAS | I21: VENTANAS | J21: 10 | K21: 2010 | L21: HOME DEPOT | M21: 500
A22: B130054 | B22: CASTELLANOS BARRIOS VERONICA | C22: 3 | D22: F | E22: vero25@hotmail.com | F22: 9621659836 | G22: CONTADURIA | I22: ESCRITORIOS | J22: 30 | K22: 2012 | L22: OFFICE DEPOT | M22: 600
A23: B130055 | B23: CRUZ TOLEDO HENRRY | C23: 4 | D23: I | E23: hery4@hotmail.com | F23: 9621458966 | G23: CONTADURIA | I23: COMPUTADORAS | J23: 50 | K23: 2011 | L23: DELL | M23: 300
A24: B130056 | B24: HERNANDEZ RAMOS BRENDA | C24: 5 | D24: C | E24: brend636@hotmail.com | F24: 9624569368 | G24: CONTADURIA | I24: PIZARRONES | J24: 66 | K24: 2010 | L24: MARKER | M24: 100
A25: B130057 | B25: HIDALGO SOLIS VICTORIA | C25: 6 | D25: E | E25: Hsolis@hotmail.com | F25: 9624568791 | G25: CONTADURIA | I25: PAPELERIA Y UTILES | J25: 50 | K25: 2014 | L25: TONY | M25: 200
A26: B130058 | B26: MENDEZ MOLINA JESUS | C26: 7 | D26: C | E26: JMolina@hotmail.com | F26: 9624532698 | G26: SISTEMAS | I26: IMPRESORAS | J26: 20 | K26: 2013 | L26: TINTA RAPIDA S.A DE C.V | M26: 300
A27: B130059 | B27: PEREZ ALVARADO INGRITH | C27: 8 | D27: B | E27: estrellita@hotmail.com | F27: 9623568941 | G27: SISTEMAS | I27: LAMPARAS | J27: 44 | K27: 2012 | L27: LUZ S.A DE C.V | M27: 520
A28: B130060 | B28: RAMOS MORENO JORGE | C28: 9 | D28: A | E28: jramos@hotmail.com | F28: 9623547896 | G28: SISTEMAS | I28: AIRE ACONDICIONADO | J28: 99 | K28: 2012 | L28: CLIMAFRESCO S.A DE C.V | M28: 800
I29: VENTILADORES | J29: 30 | K29: 2011 | L29: VENTILADORES DEL SUR S.A DE C.V | M29: 600
C30: SEMESTRE | D30: PAGO POR SEMESTRE | I30: PUPITRES | J30: 3 | K30: 2013 | L30: LOS PINOS S.A DE C.V | M30: 200
C31: 1 | D31: 750 | I31: MESABANCOS | J31: 55 | K31: 2010 | L31: MOBI S.A DE C.V | M31: 400
C32: 2 | D32: 800
C33: 3 | D33: 850
C34: 4 | D34: 900
C35: 5 | D35: 925
C36: 6 | D36: 950
C37: 7 | D37: 975
C38: 8 | D38: 975
C39: 9 | D39: 1000
A42: MATRICULA | B42: NOMBRE | C42: SEMESTRE | D42: GRUPO | E42: EMAIL | F42: FECHA DE NACIMIENTO | G42: LICENCIATURA | H42: TALLER CULTURAL | I42: HORARIO DEL TALLER CULTURAL
A43: B130040 | B43: Cano Solis Claudio | C43: 2 | D43: C | E43: CRUZ.E.@HOTMAIL.COM | F43: 1995-02-24 | G43: CONTADURIA | H43: BAILE | I43: LUNES 13:00-15:00 HRS
A44: B130041 | B44: Cruz del Rosario Elena | C44: 2 | D44: C | E44: MORALEX_12_@HOTMAIL.COM | F44: 1995-03-22 | G44: CONTADURIA | H44: MUSICA | I44: MARTES 13:00-15:00 HRS
A45: B130042 | B45: Galdamez Mora Alexis | C45: 2 | D45: C | E45: JIMENEZ95@HOTMAIL.COM | F45: 1995-03-23 | G45: CONTADURIA | H45: GUITARRA | I45: LUNES 13:00-15:00 HRS
A46: B130043 | B46: Hernandez Lopez Vanesa | C46: 2 | D46: C | E46: PEPLA-OR-95@HOTMAIL.COM | F46: 1995-03-24 | G46: CONTADURIA | H46: TANGO | I46: JUEVES 13:00-16:00 HRS
A47: B130044 | B47: Jimenez Bamaca Omar | C47: 2 | D47: C | E47: CHUI-14_@HOTMAIL.COM | F47: 1995-03-25 | G47: CONTADURIA | H47: CANTO | I47: VIERNES 13:00-15:00 HRS
A48: B130045 | B48: Jimenez de Leon Daniel | C48: 2 | D48: C | E48: ALEX_AMIN@HOTMAIL.COM | F48: 1995-03-26 | G48: CONTADURIA | H48: PIANO | I48: JUEVES 13:00-16:00 HRS
A49: B130046 | B49: José Emilio Pacheco | C49: 2 | D49: C | E49: VELASCO72@HOTMAIL.COM | F49: 1995-03-27 | G49: CONTADURIA | H49: BALLET | I49: LUNES 13:00-15:00 HRS
A50: B130047 | B50: Medina Gonzales Jorge | C50: 2 | D50: C | E50: MARIE.GONZO@HOTMAIL.COM | F50: 1995-03-28 | G50: CONTADURIA | H50: BATUCADA | I50: MARTES 13:00-15:00 HRS
A51: B130048 | B51: Ortiz Velasco Erick | C51: 2 | D51: C | E51: JIMI-DANIELS@HOTMAIL.COM | F51: 1995-03-29 | G51: CONTADURIA | H51: CORTE Y CONFECCION | I51: LUNES 13:00-15:00 HRS
A52: B130049 | B52: Perez Ortiz Placido | C52: 2 | D52: C | E52: CANO_09_@HOTMAIL.COM | F52: 1995-03-30 | G52: CONTADURIA | H52: TARANGO | I52: LUNES 13:00-15:00 HRS
A53: B130050 | B53: Ramos Barron Carlos | C53: 2 | D53: C | E53: VANEXA-LO-@HOITMAIL.COM | F53: 1995-03-31 | G53: CONTADURIA | H53: DIBUJO | I53: MARTES 13:00-15:00 HRS
A54: B130051 | B54: Reyes Moro Eduardo de Jesus | C54: 2 | D54: C | E54: CALOBETO@HOTMAIL.COM | F54: 1995-04-01 | G54: CONTADURIA | H54: AJEDREZ | I54: VIERNES 13:00-15:00 HRS
A55: B130052 | B55: Salgado Molina Alexis Amin | C55: 2 | D55: C | E55: JOSE_P_@HOTMAIL.COM | F55: 1995-04-02 | G55: CONTADURIA | H55: FLAUTA | I55: LUNES 13:00-15:00 HRS

Sheet CALIFICACIONES
D2: PROCESO CONTABLE | R2: DERECHO | AB2: MATEMATICAS | AL2: HERRAMIENTAS AVANZADAS DE COMPUTACION
D3: TRABAJOS | G3: PRACTICAS | L3: EXAMENES | Q3: CALIFICACION | R3: EXPOSICIONES | U3: TRABAJOS | X3: EXAMEN | AA3: CALIFICACION | AB3: TRABAJOS | AG3: EXAMEN | AK3: CALIFICACION | AL3: WORD | AO3: EXCEL | AR3: C++ | AU3: CALIFICACION | AV3: PROMEDIO
A4: =BASE!A2 -> MATRICULA | B4: =BASE!B2 -> NOMBRE | C4: CALIFICACIONES DEL PARCIAL | D4: T1 | E4: T2 | F4: T3 | G4: P1 | H4: P2 | I4: P3 | J4: P4 | K4: P5 | L4: E1 | M4: E2 | N4: E3 | O4: E4 | P4: E5 | R4: E1 | S4: E2 | T4: E3 | U4: T1 | V4: T2 | W4: T3 | X4: EX1 | Y4: EX2 | Z4: EX3 | AB4: T1 | AC4: T2 | AD4: T3 | AE4: T4 | AF4: T5 | AG4: EX1 | AH4: EX2 | AI4: EX3 | AJ4: EX4 | AL4: W1 | AM4: W2 | AN4: W3 | AO4: E1 | AP4: E2 | AQ4: E3 | AR4: C1 | AS4: C2 | AT4: C3
A5: =BASE!A3 -> B130012 | B5: =BASE!B3 -> JUAN JOSE PEDROSA MENDEZ | D5: 10 | E5: 9 | F5: 8 | G5: 8 | H5: 8 | I5: 10 | J5: 8 | K5: 10 | L5: 9 | M5: 8 | N5: 9 | O5: 10 | P5: 9 | Q5: =ROUND((AVERAGE(D5:F5)*$E$22)+(AVERAGE(G5:K5)*$E$23)+(AVERAGE(L5:P5)*$E$24),2) -> 8.95 | R5: 10 | S5: 8 | T5: 9 | U5: 10 | V5: 8 | W5: 9 | X5: 10 | Y5: 9 | Z5: 9 | AA5: =ROUND((AVERAGE(R5:T5)*$U$22)+(AVERAGE(U5:W5)*$U$23)+(AVERAGE(X5:Z5)*$U$24),2) -> 9.2 | AB5: 10 | AC5: 9 | AD5: 8 | AE5: 10 | AF5: 10 | AG5: 10 | AH5: 10 | AI5: 10 | AJ5: 10 | AK5: =ROUND((AVERAGE(AB5:AF5)*$AE$22)+(AVERAGE(AG5:AJ5)*$AE$23),2) -> 9.82 | AL5: 10 | AM5: 9 | AN5: 7 | AO5: 10 | AP5: 9 | AQ5: 9 | AR5: 8 | AS5: 9 | AT5: 6 | AU5: =ROUND((AVERAGE(AL5:AN5)*$AN$22)+(AVERAGE(AO5:AQ5)*$AN$23)+(AVERAGE(AR5:AT5)*$AN$24),2) -> 9.75 | AV5: =AVERAGE(Q5,AA5,AK5,AU5) -> 9.43 | AW5: =IF(AV5>6,"APROBADO","REPROBADO") -> APROBADO
A6: =BASE!A4 -> B130023 | B6: =BASE!B4 -> ALEXIS MOLINA MENDEZ | D6: 8 | E6: 6 | F6: 8 | G6: 5 | H6: 9 | I6: 10 | J6: 8 | K6: 7 | L6: 8 | M6: 9 | N6: 9 | O6: 8 | P6: 9 | Q6: =ROUND((AVERAGE(D6:F6)*$E$22)+(AVERAGE(G6:K6)*$E$23)+(AVERAGE(L6:P6)*$E$24),2) -> 8.08 | R6: 9 | S6: 10 | T6: 8 | U6: 9 | V6: 8 | W6: 9 | X6: 9 | Y6: 8 | Z6: 9 | AA6: =ROUND((AVERAGE(R6:T6)*$U$22)+(AVERAGE(U6:W6)*$U$23)+(AVERAGE(X6:Z6)*$U$24),2) -> 8.7 | AB6: 10 | AC6: 9 | AD6: 8 | AE6: 10 | AF6: 9 | AG6: 9 | AH6: 9 | AI6: 9 | AJ6: 9 | AK6: =ROUND((AVERAGE(AB6:AF6)*$AE$22)+(AVERAGE(AG6:AJ6)*$AE$23),2) -> 9.06 | AL6: 8 | AM6: 9 | AN6: 8 | AO6: 8 | AP6: 9 | AQ6: 9 | AR6: 8 | AS6: 5 | AT6: 6 | AU6: =ROUND((AVERAGE(AL6:AN6)*$AN$22)+(AVERAGE(AO6:AQ6)*$AN$23)+(AVERAGE(AR6:AT6)*$AN$24),2) -> 8.9 | AV6: =AVERAGE(Q6,AA6,AK6,AU6) -> 8.685 | AW6: APROBADO
A7: =BASE!A5 -> B130031 | B7: =BASE!B5 -> ANGEL GUILLERMO PEREZ PEREZ | D7: 10 | E7: 7 | F7: 6 | G7: 8 | H7: 7 | I7: 10 | J7: 9 | K7: 8 | L7: 9 | M7: 7 | N7: 9 | O7: 10 | P7: 9 | Q7: 8.42 | R7: 8 | S7: 7 | T7: 10 | U7: 8 | V7: 4 | W7: 8 | X7: 8 | Y7: 8 | Z7: 9 | AA7: 7.83 | AB7: 9 | AC7: 9 | AD7: 8 | AE7: 9 | AF7: 8 | AG7: 8 | AH7: 8 | AI7: 8 | AJ7: 8 | AK7: 8.18 | AL7: 9 | AM7: 9 | AN7: 8 | AO7: 9 | AP7: 9 | AQ7: 9 | AR7: 8 | AS7: 5 | AT7: 6 | AU7: 9.18 | AV7: 8.4025 | AW7: APROBADO
A8: =BASE!A6 -> B130032 | B8: =BASE!B6 -> AURORA LUZ ANGEL | D8: 5 | E8: 9 | F8: 7 | G8: 5 | H8: 4 | I8: 10 | J8: 7 | K8: 9 | L8: 9 | M8: 8 | N8: 9 | O8: 10 | P8: 8 | Q8: 7.9 | R8: 9 | S8: 6 | T8: 10 | U8: 10 | V8: 5 | W8: 9 | X8: 9 | Y8: 8 | Z8: 9 | AA8: 8.43 | AB8: 7 | AC8: 7 | AD8: 8 | AE8: 10 | AF8: 8 | AG8: 8 | AH8: 9 | AI8: 9 | AJ8: 10 | AK8: 8.7 | AL8: 9 | AM8: 9 | AN8: 8 | AO8: 9 | AP8: 9 | AQ8: 9 | AR8: 8 | AS8: 9 | AT8: 6 | AU8: 9.52 | AV8: 8.6375 | AW8: APROBADO
A9: =BASE!A7 -> B130025 | B9: =BASE!B7 -> BRENDA ISAELA ALESSIO | D9: 8 | E9: 9 | F9: 7 | G9: 4 | H9: 5 | I9: 8 | J9: 5 | K9: 9 | L9: 8 | M9: 9 | N9: 9 | O9: 8 | P9: 7 | Q9: 7.65 | R9: 8 | S9: 5 | T9: 10 | U9: 9 | V9: 6 | W9: 8 | X9: 8 | Y9: 8 | Z9: 9 | AA9: 8.07 | AB9: 7 | AC9: 8 | AD9: 8 | AE9: 8 | AF9: 7 | AG9: 9 | AH9: 7 | AI9: 8 | AJ9: 8 | AK9: 7.88 | AL9: 8 | AM9: 9 | AN9: 8 | AO9: 9 | AP9: 5 | AQ9: 9 | AR9: 8 | AS9: 8 | AT9: 9 | AU9: 8.7 | AV9: 8.075 | AW9: APROBADO
A10: =BASE!A8 -> B130054 | B10: =BASE!B8 -> CARLOS ISRAEL VASQUEZ TORIBIO | D10: 6 | E10: 8 | F10: 9 | G10: 3 | H10: 6 | I10: 9 | J10: 6 | K10: 9 | L10: 7 | M10: 8 | N10: 9 | O10: 8 | P10: 8 | Q10: 7.57 | R10: 9 | S10: 7 | T10: 8 | U10: 9 | V10: 2 | W10: 9 | X10: 10 | Y10: 8 | Z10: 8 | AA10: 8 | AB10: 10 | AC10: 8 | AD10: 8 | AE10: 8 | AF10: 9 | AG10: 10 | AH10: 7 | AI10: 9 | AJ10: 10 | AK10: 8.88 | AL10: 9 | AM10: 9 | AN10: 9 | AO10: 9 | AP10: 5 | AQ10: 9 | AR10: 8 | AS10: 8 | AT10: 9 | AU10: 8.8 | AV10: 8.3125 | AW10: APROBADO
A11: =BASE!A9 -> B130068 | B11: =BASE!B9 -> CIRO NAKAMURHA LOO | D11: 9 | E11: 7 | F11: 10 | G11: 6 | H11: 2 | I11: 7 | J11: 3 | K11: 8 | L11: 6 | M11: 9 | N11: 8 | O11: 7 | P11: 8 | Q11: 7.27 | R11: 7 | S11: 10 | T11: 9 | U11: 9 | V11: 9 | W11: 8 | X11: 9 | Y11: 7 | Z11: 8 | AA11: 8.27 | AB11: 8 | AC11: 8 | AD11: 8 | AE11: 7 | AF11: 7 | AG11: 8 | AH11: 8 | AI11: 8 | AJ11: 9 | AK11: 8.06 | AL11: 8 | AM11: 9 | AN11: 9 | AO11: 8 | AP11: 5 | AQ11: 9 | AR11: 8 | AS11: 7 | AT11: 8 | AU11: 8.35 | AV11: 7.9875 | AW11: APROBADO
A12: =BASE!A10 -> B130066 | B12: =BASE!B10 -> EDUARDO TOLEDO TOLEDO | D12: 9 | E12: 8 | F12: 6 | G12: 9 | H12: 1 | I12: 8 | J12: 4 | K12: 7 | L12: 6 | M12: 9 | N12: 9 | O12: 7 | P12: 7 | Q12: 7.17 | R12: 9 | S12: 6 | T12: 8 | U12: 8 | V12: 9 | W12: 9 | X12: 8 | Y12: 7 | Z12: 8 | AA12: 7.97 | AB12: 9 | AC12: 9 | AD12: 8 | AE12: 10 | AF12: 9 | AG12: 7 | AH12: 8 | AI12: 9 | AJ12: 10 | AK12: 8.65 | AL12: 9 | AM12: 9 | AN12: 9 | AO12: 8 | AP12: 6 | AQ12: 9 | AR12: 8 | AS12: 7 | AT12: 7 | AU12: 8.55 | AV12: 8.085 | AW12: APROBADO
A13: =BASE!A11 -> B130047 | B13: =BASE!B11 -> FERNANDO MENDEZ MENDEZ | D13: 10 | E13: 8 | F13: 9 | G13: 8 | H13: 9 | I13: 4 | J13: 9 | K13: 7 | L13: 6 | M13: 9 | N13: 8 | O13: 6 | P13: 7 | Q13: 7.7 | R13: 8 | S13: 9 | T13: 8 | U13: 7 | V13: 7 | W13: 8 | X13: 9 | Y13: 7 | Z13: 8 | AA13: 7.83 | AB13: 8 | AC13: 9 | AD13: 8 | AE13: 8 | AF13: 8 | AG13: 10 | AH13: 8 | AI13: 9 | AJ13: 9 | AK13: 8.76 | AL13: 5 | AM13: 9 | AN13: 7 | AO13: 5 | AP13: 6 | AQ13: 9 | AR13: 8 | AS13: 7 | AT13: 9 | AU13: 7.72 | AV13: 8.0025 | AW13: APROBADO
A14: =BASE!A12 -> B130024 | B14: =BASE!B12 -> JAZMIN PEDROSA PEDROSA | D14: 10 | E14: 10 | F14: 9 | G14: 6 | H14: 8 | I14: 6 | J14: 4 | K14: 8 | L14: 9 | M14: 8 | N14: 7 | O14: 8 | P14: 9 | Q14: 8.12 | R14: 7 | S14: 6 | T14: 7 | U14: 7 | V14: 7 | W14: 9 | X14: 10 | Y14: 9 | Z14: 6 | AA14: 7.97 | AB14: 9 | AC14: 9 | AD14: 8 | AE14: 9 | AF14: 9 | AG14: 8 | AH14: 10 | AI14: 10 | AJ14: 9 | AK14: 9.12 | AL14: 8 | AM14: 9 | AN14: 7 | AO14: 5 | AP14: 6 | AQ14: 8 | AR14: 8 | AS14: 8 | AT14: 9 | AU14: 7.72 | AV14: 8.2325 | AW14: APROBADO
A15: =BASE!A13 -> B130044 | B15: =BASE!B13 -> JESUS REYES TOLEDO | D15: 9 | E15: 5 | F15: 10 | G15: 6 | H15: 6 | I15: 5 | J15: 9 | K15: 5 | L15: 5 | M15: 5 | N15: 5 | O15: 5 | P15: 5 | Q15: 6.05 | R15: 8 | S15: 8 | T15: 5 | U15: 5 | V15: 5 | W15: 8 | X15: 8 | Y15: 9 | Z15: 6 | AA15: 7.1 | AB15: 10 | AC15: 0 | AD15: 5 | AE15: 0 | AF15: 5 | AG15: 5 | AH15: 0 | AI15: 8 | AJ15: 7 | AK15: 4.7 | AL15: 9 | AM15: 0 | AN15: 5 | AO15: 5 | AP15: 5 | AQ15: 5 | AR15: 8 | AS15: 5 | AT15: 9 | AU15: 6.03 | AV15: 5.97 | AW15: REPROBADO
A16: =BASE!A14 -> B130087 | B16: =BASE!B14 -> LIZBETH GUERRERO CRUZ | D16: 10 | E16: 5 | F16: 7 | G16: 6 | H16: 8 | I16: 3 | J16: 8 | K16: 6 | L16: 6 | M16: 8 | N16: 8 | O16: 9 | P16: 9 | Q16: 7.38 | R16: 7 | S16: 7 | T16: 9 | U16: 8 | V16: 9 | W16: 9 | X16: 7 | Y16: 9 | Z16: 6 | AA16: 7.77 | AB16: 9 | AC16: 9 | AD16: 8 | AE16: 9 | AF16: 7 | AG16: 8 | AH16: 9 | AI16: 9 | AJ16: 8 | AK16: 8.47 | AL16: 8 | AM16: 8 | AN16: 9 | AO16: 7 | AP16: 7 | AQ16: 8 | AR16: 8 | AS16: 9 | AT16: 9 | AU16: 8.55 | AV16: 8.0425 | AW16: APROBADO
A17: =BASE!A15 -> B130077 | B17: =BASE!B15 -> MARIA ELENA CRUZ CRUZ | D17: 8 | E17: 9 | F17: 7 | G17: 3 | H17: 9 | I17: 9 | J17: 7 | K17: 6 | L17: 7 | M17: 7 | N17: 6 | O17: 9 | P17: 9 | Q17: 7.5 | R17: 9 | S17: 8 | T17: 7 | U17: 9 | V17: 9 | W17: 8 | X17: 10 | Y17: 9 | Z17: 7 | AA17: 8.6 | AB17: 10 | AC17: 8 | AD17: 8 | AE17: 8 | AF17: 10 | AG17: 9 | AH17: 9 | AI17: 9 | AJ17: 6 | AK17: 8.42 | AL17: 8 | AM17: 8 | AN17: 8 | AO17: 7 | AP17: 8 | AQ17: 7 | AR17: 8 | AS17: 9 | AT17: 9 | AU17: 8.5 | AV17: 8.255 | AW17: APROBADO
A18: =BASE!A16 -> B130054 | B18: =BASE!B16 -> OMAR CRUZ VASQUEZ | D18: 9 | E18: 9 | F18: 9 | G18: 7 | H18: 7 | I18: 5 | J18: 5 | K18: 6 | L18: 8 | M18: 8 | N18: 8 | O18: 9 | P18: 8 | Q18: 7.85 | R18: 9 | S18: 8 | T18: 9 | U18: 8 | V18: 9 | W18: 9 | X18: 10 | Y18: 9 | Z18: 7 | AA18: 8.67 | AB18: 10 | AC18: 9 | AD18: 8 | AE18: 10 | AF18: 8 | AG18: 9 | AH18: 8 | AI18: 8 | AJ18: 10 | AK18: 8.83 | AL18: 8 | AM18: 8 | AN18: 8 | AO18: 7 | AP18: 8 | AQ18: 7 | AR18: 8 | AS18: 8 | AT18: 9 | AU18: 8.42 | AV18: 8.4425 | AW18: APROBADO
A19: =BASE!A17 -> B130069 | B19: =BASE!B17 -> PEDRO FERNANDEZ MUTUO | D19: 7 | E19: 8 | F19: 5 | G19: 5 | H19: 8 | I19: 7 | J19: 3 | K19: 8 | L19: 6 | M19: 8 | N19: 7 | O19: 8 | P19: 8 | Q19: 6.92 | R19: 9 | S19: 8 | T19: 6 | U19: 8 | V19: 9 | W19: 8 | X19: 9 | Y19: 9 | Z19: 10 | AA19: 8.87 | AB19: 9 | AC19: 9 | AD19: 8 | AE19: 10 | AF19: 8 | AG19: 8 | AH19: 9 | AI19: 9 | AJ19: 9 | AK19: 8.77 | AL19: 8 | AM19: 8 | AN19: 8 | AO19: 7 | AP19: 8 | AQ19: 7 | AR19: 8 | AS19: 8 | AT19: 9 | AU19: 8.42 | AV19: 8.245 | AW19: APROBADO
C21: PROCESO CONTABLE | R21: DERECHO | AB21: MATEMATICAS | AL21: HERRAMIENTAS AVANZADAS DE COMPUTACION
C22: TRABAJOS | E22: 0.25 | R22: EXPOSICIONES | U22: 0.1 | AB22: TRABAJOS | AE22: 0.3 | AL22: WORD | AN22: 0.15
C23: PRACTICAS | E23: 0.25 | R23: TRABAJOS | U23: 0.3 | AB23: EXAMENES | AE23: 0.7 | AL23: EXCEL | AN23: 0.7
C24: EXAMENES | E24: 0.5 | R24: EXAMENES | U24: 0.6 | AL24: C++ | AN24: 0.25

Sheet INF. DE ALUMNO
B2: MATRICULA | C2: NOMBRE | D2: =BASE!E2 -> E-MAIL | E2: =BASE!F2 -> NUMERO TELEFONICO | F2: =BASE!C2 -> SEMESTRE | G2: =BASE!D2 -> GRUPO | H2: PROMEDIO DEL SEMESTRE
B3: B130012 | C3: =LOOKUP(B3,BASE!A3:A17,BASE!B3:B17) -> JUAN JOSE PEDROSA MENDEZ | D3: =LOOKUP(B3,BASE!A3:A17,BASE!E3:E17) -> juan@hotmail.com | E3: =LOOKUP(B3,BASE!A3:A17,BASE!F3:F17) -> 9621789542 | F3: =LOOKUP('INF. DE ALUMNO'!B3,BASE!A3:A17,BASE!C3:C17) -> 2 | G3: =LOOKUP(B3,BASE!A3:A17,BASE!D3:D17) -> K | H3: =LOOKUP(B3,CALIFICACIONES!A5:A19,CALIFICACIONES!AV5:AV19) -> 9.43 | I3: =IF(H3<6,"REPROBADO","APROBADO") -> APROBADO

Sheet INF. DE SALON
B2: SILLAS | G2: ESCRITORIOS
B3: SALON | C3: N° DE SILLA | D3: MARCA | E3: PRECIO | F3: TOTAL | G3: SALON | H3: N° DE ESCRITORIOS | I3: MARCA | J3: PRECIO | K3: TOTAL
B4: 2°C | C4: 30 | D4: MIRADO | E4: 150 | F4: =C4*E4 -> 4500 | G4: 2°C | H4: 9 | I4: MIRADO | J4: 220 | K4: =H4*J4 -> 1980
B5: 4°C | C5: 50 | D5: DIAMANTE | E5: 300 | F5: =C5*E5 -> 15000 | G5: 4°C | H5: 6 | I5: AX | J5: 220 | K5: =H5*J5 -> 1320
B6: 6°C | C6: 13 | D6: PINOS | E6: 250 | F6: 3250 | G6: 6°C | H6: 7 | I6: KIU | J6: 220 | K6: 1540
B7: 3°B | C7: 22 | D7: RBI | E7: 400 | F7: 8800 | G7: 3°B | H7: 4 | I7: IVM | J7: 220 | K7: 880
B8: 8°A | C8: 12 | D8: ZOS | E8: 150 | F8: 1800 | G8: 8°A | H8: 6 | I8: FOX | J8: 220 | K8: 1320
B9: ACTIVO TOTAL | F9: =SUM(F4:F8) -> 33350 | G9: ACTIVO TOTAL | K9: =SUM(K4:K8) -> 7040
B10: COMPUTADORAS | G10: PIZARRONES ELECTRICOS
B11: SALON | C11: N° DE COMPUTADORAS | D11: MARCA | E11: PRECIO | F11: TOTAL | G11: SALON | H11: N° DE PIZARRONES | I11: MARCA | J11: PRECIO | K11: TOTAL
B12: LABORATORIO LINUX A | C12: 60 | D12: DELL | E12: 6000 | F12: =C12*E12 -> 360000 | G12: AUDIOVISUAL | H12: 2 | I12: APPLE | J12: 15000 | K12: =H12*J12 -> 30000
B13: LABORATORIO LINUX B | C13: 36 | D13: APPLE | E13: 15000 | F13: =C13*E13 -> 540000 | G13: CENTRO COMPUTACIONAL ESPECIALIZADO | H13: 2 | I13: HP | J13: 10000 | K13: =H13*J13 -> 20000
B14: TOTAL ACTIVO | F14: =SUM(F12:F13) -> 900000 | G14: TOTAL ACTIVO | K14: =SUM(K12:K13) -> 50000
F16: TOTAL DE ACTIVOS
F17: =SUM(F9+K9+F14+K14) -> 990390
E18: =PESOSMN(F17) -> ( NOVECIENTOS NOVENTA MIL TRESCIENTOS NOVENTA PESOS 00/100 M.N.)

Sheet SUELDO DE PROFESORES
B4: =BASE!I2 -> N° DE PLAZA | C4: =BASE!J2 -> PROFESOR | D4: =BASE!K2 -> MATERIA | E4: =BASE!L2 -> SUELDO | F4: =BASE!M2 -> CREDITOS | G4: =BASE!N2 -> SUELDO TOTAL MENSUAL
B5: N°2525252225 | C5: =LOOKUP(B5,BASE!I3:I10,BASE!J3:J10) -> CARLOS ALESSIO PEREZ | D5: =LOOKUP(B5,BASE!I3:I10,BASE!K3:K10) -> INGLES | E5: =LOOKUP(B5,BASE!I3:I10,BASE!L3:L10) -> 5000 | F5: =LOOKUP(B5,BASE!I3:I10,BASE!M3:M10) -> 500 | G5: =LOOKUP(B5,BASE!I3:I10,BASE!N3:N10) -> 5500

Sheet INSCRIPCION
E3: PAGOS DE INSCRIPCION
E7: MATRICULA | H7: B130052 | M7: PAGO
M8: =LOOKUP(H13,BASE!C31:C39,BASE!D31:D39) -> 750
E10: NOMBRE | H10: =LOOKUP(INSCRIPCION!H7,BASE!A20:A28,BASE!B20:B28) -> AGUILAR PEREZ MARIO
E13: SEMESTRE | H13: =LOOKUP(H7,BASE!A20:A28,BASE!C20:C28) -> 1
E16: GRUPO | H16: =LOOKUP(H7,BASE!A20:A28,BASE!D20:D28) -> A
E19: LICENCIATURA | H19: =LOOKUP(H7,BASE!A20:A28,BASE!G20:G28) -> CONTADURIA
E22: E-MAIL | H22: =LOOKUP(H7,BASE!A20:A28,BASE!E20:E28) -> perez_34@hotmail.com
E25: TELEFONO | H25: =LOOKUP(H7,BASE!A20:A28,BASE!F20:F28) -> 9621789542

Sheet BOLETAS
F2: BOLETAS
F6: MATRICULA | H6: B130012
F9: NOMBRE | H9: =LOOKUP(H6,CALIFICACIONES!A5:A19,CALIFICACIONES!B5:B19) -> JUAN JOSE PEDROSA MENDEZ
F11: MATERIAS | K11: CALIFICACION
G13: =CALIFICACIONES!D2 -> PROCESO CONTABLE | K13: =LOOKUP(BOLETAS!H6,CALIFICACIONES!A5:A19,CALIFICACIONES!Q5:Q19) -> 8.95
G14: =CALIFICACIONES!R2 -> DERECHO | K14: =LOOKUP(H6,CALIFICACIONES!A5:A19,CALIFICACIONES!AA5:AA19) -> 9.2
G15: =CALIFICACIONES!AB2 -> MATEMATICAS | K15: =LOOKUP(H6,CALIFICACIONES!A5:A19,CALIFICACIONES!AK5:AK19) -> 9.82
G16: =CALIFICACIONES!AL2 -> HERRAMIENTAS AVANZADAS DE COMPUTACION | K16: =LOOKUP(H6,CALIFICACIONES!A5:A19,CALIFICACIONES!AU5:AU19) -> 9.75
I19: PROMEDIO DEL SEMESTRE | K19: =LOOKUP(H6,CALIFICACIONES!A5:A19,CALIFICACIONES!AV5:AV19) -> 9.43
J20: =IF(K19<6,"REPROBADO","APROBADO") -> APROBADO

Sheet DATOS DEL ALUMNOS DE NUEVO ING.
C2: ALUMNOS DE NUEVO INGRESO
B5: NOMBRE | D5: LUGAR DE NACIMIENTO | G5: ESTADO
B7: AGUILAR PEREZ MARIO | D7: =LOOKUP('DATOS DEL ALUMNOS DE NUEVO ING.'!B7,BASE!Q3:Q19,BASE!R3:R19) -> CACAHUATAN | G7: =LOOKUP(B7,BASE!Q3:Q19,BASE!T3:T19) -> CHIAPAS
B10: FECHA DE NACIMIENTO | D10: EDAD | G10: SEXO
B12: =LOOKUP(D7,BASE!R3:R19,BASE!U3:U19) -> 2014-02-09 | D12: =LOOKUP(B7,BASE!Q3:Q19,BASE!V3:V19) -> 18 | G12: =LOOKUP(B7,BASE!Q3:Q19,BASE!W3:W19) -> H
B14: CARRERA ELEGIDA | C14: PROMEDIO DE EXAMEN DE SELECCIÓN
B16: =LOOKUP(B7,BASE!Q3:Q19,BASE!X3:X19) -> SISTEMAS | C16: =LOOKUP(B7,BASE!Q3:Q19,BASE!AD4:AD19) -> 8

Sheet HORARIO DE TALLER
B2: =BASE!A42 -> MATRICULA | C2: =BASE!B42 -> NOMBRE | D2: =BASE!C42 -> SEMESTRE | E2: =BASE!D42 -> GRUPO | F2: =BASE!G42 -> LICENCIATURA | G2: =BASE!H42 -> TALLER CULTURAL | H2: =BASE!I42 -> HORARIO DEL TALLER CULTURAL
B3: Hernandez Lopez Vanesa | C3: =LOOKUP('HORARIO DE TALLER'!B3,BASE!A43:A55,BASE!B43:B55) -> Salgado Molina Alexis Amin | D3: =LOOKUP(B3,BASE!A43:A55,BASE!C43:C55) -> 2 | E3: =LOOKUP(B3,BASE!A43:A55,BASE!D43:D55) -> C | F3: =LOOKUP(B3,BASE!A43:A55,BASE!G43:G55) -> CONTADURIA | G3: =LOOKUP(B3,BASE!A43:A55,BASE!H43:H55) -> FLAUTA | H3: =LOOKUP(B3,BASE!A43:A55,BASE!I43:I55) -> LUNES 13:00-15:00 HRS

Sheet INVENTARIO
B3: INVENTARIO
B4: =BASE!I20 -> MOBILIARIO O EQUIPO | C4: =BASE!J20 -> CANTIDAD | D4: =BASE!K20 -> AÑO DE EQUIPAMIENTO | E4: =BASE!L20 -> PROVEEDORES | F4: =BASE!M20 -> PRECIO UNITARIO | G4: CONCEPTO
B5: =BASE!I21 -> VENTANAS | C5: =BASE!J21 -> 10 | D5: =BASE!K21 -> 2010 | E5: =BASE!L21 -> HOME DEPOT | F5: =BASE!M21 -> 500 | G5: =IF(D6<2011,"EN BUEN ESTADO","EN MAL ESTADO") -> EN MAL ESTADO
B6: =BASE!I22 -> ESCRITORIOS | C6: =BASE!J22 -> 30 | D6: =BASE!K22 -> 2012 | E6: =BASE!L22 -> OFFICE DEPOT | F6: =BASE!M22 -> 600 | G6: =IF(D7>2011,"EN BUEN ESTADO","EN MAL ESTADO") -> EN MAL ESTADO
B7: =BASE!I23 -> COMPUTADORAS | C7: =BASE!J23 -> 50 | D7: =BASE!K23 -> 2011 | E7: =BASE!L23 -> DELL | F7: =BASE!M23 -> 300 | G7: EN MAL ESTADO
B8: =BASE!I24 -> PIZARRONES | C8: =BASE!J24 -> 66 | D8: =BASE!K24 -> 2010 | E8: =BASE!L24 -> MARKER | F8: =BASE!M24 -> 100 | G8: EN BUEN ESTADO
B9: =BASE!I25 -> PAPELERIA Y UTILES | C9: =BASE!J25 -> 50 | D9: =BASE!K25 -> 2014 | E9: =BASE!L25 -> TONY | F9: =BASE!M25 -> 200 | G9: EN BUEN ESTADO
B10: =BASE!I26 -> IMPRESORAS | C10: =BASE!J26 -> 20 | D10: =BASE!K26 -> 2013 | E10: =BASE!L26 -> TINTA RAPIDA S.A DE C.V | F10: =BASE!M26 -> 300 | G10: EN BUEN ESTADO
B11: =BASE!I27 -> LAMPARAS | C11: =BASE!J27 -> 44 | D11: =BASE!K27 -> 2012 | E11: =BASE!L27 -> LUZ S.A DE C.V | F11: =BASE!M27 -> 520 | G11: EN BUEN ESTADO
B12: =BASE!I28 -> AIRE ACONDICIONADO | C12: =BASE!J28 -> 99 | D12: =BASE!K28 -> 2012 | E12: =BASE!L28 -> CLIMAFRESCO S.A DE C.V | F12: =BASE!M28 -> 800 | G12: EN MAL ESTADO
B13: =BASE!I29 -> VENTILADORES | C13: =BASE!J29 -> 30 | D13: =BASE!K29 -> 2011 | E13: =BASE!L29 -> VENTILADORES DEL SUR S.A DE C.V | F13: =BASE!M29 -> 600 | G13: EN BUEN ESTADO
B14: =BASE!I30 -> PUPITRES | C14: =BASE!J30 -> 3 | D14: =BASE!K30 -> 2013 | E14: =BASE!L30 -> LOS PINOS S.A DE C.V | F14: =BASE!M30 -> 200 | G14: EN MAL ESTADO
B15: =BASE!I31 -> MESABANCOS | C15: =BASE!J31 -> 55 | D15: =BASE!K31 -> 2010 | E15: =BASE!L31 -> MOBI S.A DE C.V | F15: =BASE!M31 -> 400 | G15: EN MAL ESTADO

Sheet ALUMNOS PARA BECA
B4: MATRICULA | C4: NOMBRE | G4: PROMEDIO | I4: CANDIDATO A BECA
B5: B130012 | C5: =LOOKUP(B5,CALIFICACIONES!A5:A19,CALIFICACIONES!B5:B19) -> JUAN JOSE PEDROSA MENDEZ | G5: =LOOKUP(B5,CALIFICACIONES!A5:A19,CALIFICACIONES!AV5:AV19) -> 9.43 | I5: =IF(G5>9.4,"BECADO","SIGUE PARTICIPANDO") -> BECADO
